[Event "Summer Prague Open-A 2022"]
[Site "Prague"]
[Date "2022.08.07"]
[Round "3.2"]
[White "Mirzoev, Azer"]
[Black "Jedlicka, Ales"]
[Result "1-0"]
[ECO "E21"]
[WhiteElo "2424"]
[BlackElo "2216"]
[Annotator "TA"]
[PlyCount "95"]
[EventDate "2022.08.05"]
[EventType "swiss"]
[EventCountry "CZE"]
[SourceTitle "playchess.com"]
[Source "ChessBase"]
[SourceQuality "1"]
[TimeControl "40/5400+30:1800+30"]

{[%evp 13,95,8,0,4,31,21,1,0,42,39,45,37,41,20,20,0,25,-7,1,10,10,3,0,11,22,0,20,8,12,0,5,18,44,15,36,15,21,0,0,0,0,-10,-12,-20,-25,-32,0,-5,0,0,0,0,0,0,0,0,0,0,0,0,0,0,15,20,28,8,18,3,76,72,411,408,400,378,1652,1235,29974,29956,29992,1727,1641,1394,29990,1001]} 1. d4 {[%emt 0:00:50]} Nf6 {[%emt 0:00:39]} 2. Nf3 {[%emt 0:00:46]} e6 {[%emt 0:00:54]} 3. c4 {[%emt 0:00:06]} b6 {[%emt 0:01:27]} 4. Nc3 {[%emt 0:00:15]} Bb4 {[%emt 0:00:42]} 5. Qb3 {[%emt 0:00:25]} a5 {[%emt 0:01:01]} 6. Bg5 {[%emt 0:00:38]} Bb7 {[%emt 0:00:45]} 7. e3 {[%emt 0:00:18]} h6 {[%emt 0:00:57]} 8. Bh4 {[%emt 0:00:07] E12: Queen's Indian: Unusual White 4th moves, 4 a3, 4 Nc3 Bb7 5 a3 and 4 Nc3 Bb7 .} g5 {[%emt 0:01:23]} 9. Bg3 {[%emt 0:00:08]} Ne4 {[%emt 0:01:27]} 10. Nd2 {[%emt 0:02:42] [#] The position is equal.} Nxg3 $146 {[%emt 0:04:25]} (10... Bxc3 $5 11. bxc3 Nxg3 12. hxg3 d6 $11) ({Predecessor:} 10... Bxc3 11. bxc3 Nxd2 12. Kxd2 d6 13. Rd1 Nd7 14. Kc1 Bc6 15. f3 h5 16. e4 h4 {½-½ (57) Ivanisevic,I (2560)-Ostojic,N (2451) Herceg Novi 2001}) 11. hxg3 {[%emt 0:00:14]} d6 {[%emt 0:00:29]} 12. O-O-O {[%emt 0:01:11]} Nd7 {[%emt 0:00:35]} 13. f3 {[%emt 0:10:14]} Qe7 {[%emt 0:02:25]} 14. Bd3 {[%emt 0:09:21]} O-O-O {[%emt 0:05:04][%cal Og5g4]} (14... g4 $5) 15. Be4 {[%emt 0:00:22]} Bxe4 {[%emt 0:10:03]} 16. Ndxe4 {[%emt 0:01:42] Black should prevent Na4.} f5 {[%emt 0:00:31]} 17. Nf2 {[%emt 0:02:55]} Bxc3 {[%emt 0:01:33]} 18. Qxc3 {[%emt 0:00:04]} Nf6 {[%emt 0:05:30]} 19. Qc2 {[%emt 0:02:21]} Kb8 {[%emt 0:01:17]} 20. Kb1 {[%emt 0:00:05]} h5 {[%emt 0:02:51]} 21. a3 {[%emt 0:04:06]} h4 {[%emt 0:07:53]} 22. gxh4 {[%emt 0:00:19]} gxh4 {[%emt 0:00:48]} 23. Nh3 {[%emt 0:00:36]} Nh5 {[%emt 0:01:09][%cal Bf6h5,Bh5g3,Bg3f5,Bf5e7,Be7c6,Bc6e5][%mdl 32]} 24. Rhe1 {[%emt 0:01:12]} Rhg8 {[%emt 0:00:52]} 25. e4 {[%emt 0:02:11]} fxe4 {[%emt 0:00:31]} 26. Rxe4 {[%emt 0:00:20]} Ng3 {[%emt 0:01:40]} 27. Re3 {[%emt 0:01:45]} Qf6 {[%emt 0:00:38]} 28. Red3 {[%emt 0:03:47]} Nf5 {[%emt 0:06:49]} 29. R1d2 {[%emt 0:01:05]} Ne7 {[%emt 0:07:36]} 30. Ka2 {[%emt 0:01:58]} Qf5 {[%emt 0:00:42]} 31. Qd1 {[%emt 0:03:08]} Rg7 {[%emt 0:01:37]} 32. Re3 {[%emt 0:01:10]} Rdg8 {[%emt 0:01:01]} 33. Ree2 {[%emt 0:00:07]} Nc6 {[%emt 0:01:58]} 34. Qa4 {[%emt 0:03:00]} Kb7 {[%emt 0:01:50]} 35. d5 {[%emt 0:06:11]} exd5 {[%emt 0:01:00]} ({Don't play} 35... Ne5 36. f4 Ng6 37. Rxe6 $16) 36. cxd5 {[%emt 0:00:09]} Ne5 {[%emt 0:07:30]} 37. Nf4 {[%emt 0:07:15]} Rf7 {[%emt 0:07:45]} 38. Rd4 {[%emt 0:01:47]} Qd7 {[%emt 0:02:49]} 39. Qb3 {[%emt 0:03:03]} h3 {[%emt 0:05:01]} 40. gxh3 {[%emt 0:00:24]} Rg3 {[%emt 0:02:42]} (40... Rg1 $11 {remains equal.}) 41. Re3 $16 {[%emt 0:31:37]} a4 $2 {[%emt 0:34:36][%mdl 8192] [#] Black cannot hold the game after this.} (41... Ka7 $16) 42. Rxa4 $18 {[%emt 0:16:19]} Rf6 {[%emt 0:00:00]} 43. Rc3 {[%emt 0:00:00]} Rg1 $2 {[%emt 0:00:00]} (43... Rxf3 44. Rxf3 Nxf3) 44. Ne6 {[%emt 0:00:00]} Rxf3 {[%emt 0:00:00]} 45. Rxf3 {[%emt 0:00:00]} Nxf3 {[%emt 0:00:00]} 46. Qc4 {[%emt 0:00:00]} (46. Nd8+ $142 Kb8 47. Nc6+ Qxc6 48. dxc6 Ne5 49. Qe6 Ra1+ 50. Kxa1 Nxc6 51. Qg8+ Nd8 52. Qxd8+ Kb7 53. Qa8#) 46... b5 {[%emt 0:00:00]} 47. Rb4 {[%emt 0:00:00]} Kb6 {[%emt 0:00:00]} 48. Nd4 {[%emt 0:00:00] Weighted Error Value: White=0.08 (flawless) /Black=0.52} (48. a4 $142 Nd4 49. Nxd4 c5 50. dxc6 Kc7 51. Nxb5+ Kd8 52. cxd7 Ra1+ 53. Kxa1) 1-0

[Event "Summer Prague Open-A 2022"]
[Site "Prague"]
[Date "2022.08.07"]
[Round "3.3"]
[White "Brozka, Karel"]
[Black "Cernousek, Lukas"]
[Result "0-1"]
[ECO "D91"]
[WhiteElo "2188"]
[BlackElo "2429"]
[Annotator "TA"]
[PlyCount "120"]
[EventDate "2022.08.05"]
[EventType "swiss"]
[EventCountry "CZE"]
[SourceTitle "playchess.com"]
[Source "ChessBase"]
[SourceQuality "1"]
[TimeControl "40/5400+30:1800+30"]

{[%evp 23,120,-20,-20,-14,0,-18,6,6,10,0,0,0,0,0,0,0,7,0,0,0,0,0,0,0,-8,-24,-4,-4,-11,-12,-7,-77,-64,-71,-95,-183,-185,-174,-187,-177,-174,-176,-183,-217,-179,-203,-210,-168,-141,-172,-153,-244,-252,-255,-255,-239,-237,-250,-228,-808,-808,-1256,-1256,-1237,-1237,-1186,-1100,-1273,-1301,-1428,-897,-1516,-1561,-1591,-1542,-1560,-1516,-1229,-1489,-1260,-1074,-1199,-897,-477,-429,-381,-239,-5081,-2789,-29967,-29967,-29974,-29975,-29976,-29976,-29976,-29977,-29976,-29977]} 1. d4 {[%emt 0:00:03]} Nf6 {[%emt 0:00:07]} 2. c4 {[%emt 0:00:12]} g6 {[%emt 0:00:15]} 3. Nc3 {[%emt 0:00:41]} d5 {[%emt 0:00:07]} 4. Nf3 {[%emt 0:03:24]} Bg7 {[%emt 0:00:09]} 5. Bg5 {[%emt 0:00:44]} Ne4 {[%emt 0:00:14]} 6. cxd5 {[%emt 0:00:05]} Nxg5 {[%emt 0:00:17]} 7. Nxg5 {[%emt 0:00:06]} e6 {[%emt 0:00:11]} 8. Nf3 {[%emt 0:10:45]} exd5 {[%emt 0:00:07]} 9. e3 {[%emt 0:00:03]} O-O {[%emt 0:00:46]} 10. b4 {[%emt 0:07:07]} c6 {[%emt 0:01:31]} 11. Be2 {[%emt 0:02:42]} Be6 {[%emt 0:05:43]} 12. O-O {[%emt 0:00:59]} Nd7 {[%emt 0:06:53]} 13. Na4 {[%emt 0:08:24] D91: Grünfeld: 4 Nf3 Bg7 5 Bg5.} f5 {[%emt 0:28:50] [#]} 14. b5 $146 {[%emt 0:10:42]} ({Predecessor:} 14. Nc5 Nxc5 15. bxc5 f4 16. Rb1 Qc7 17. Rb3 Bh6 18. Ne5 fxe3 19. fxe3 b6 20. cxb6 axb6 21. Rxf8+ Kxf8 {0-1 (34) Dungl,M (1957)-Strnad,O (1786) Kouty nad Desnou 2011}) 14... cxb5 {[%emt 0:04:55]} (14... f4 $5 {[%cal Rf4e3]}) 15. Bxb5 {[%emt 0:00:14] The position is equal.} f4 {[%emt 0:00:11]} 16. Qb3 {[%emt 0:04:29]} fxe3 {[%emt 0:03:55]} 17. fxe3 {[%emt 0:04:26]} Kh8 {[%emt 0:11:17]} 18. Bxd7 {[%emt 0:15:16]} Bxd7 {[%emt 0:00:19]} 19. Nc5 {[%emt 0:00:19]} Qe7 {[%emt 0:19:32] Inhibits Ne5.} 20. Rae1 {[%emt 0:02:14]} b6 {[%emt 0:03:38]} 21. Nd3 {[%emt 0:01:35]} Be6 {[%emt 0:00:56]} 22. Nf4 {[%emt 0:05:38]} Bg8 {[%emt 0:05:13]} 23. Qb5 {[%emt 0:06:27]} Rac8 {[%emt 0:01:28]} 24. Qd3 {[%emt 0:05:27][%cal Od3g6]} ({Don't play} 24. Nxd5 Qe4 25. Nf4 Bc4 $17) 24... Rc6 {[%emt 0:01:51]} 25. Ne5 {[%emt 0:03:35]} Bxe5 {[%emt 0:00:43]} 26. dxe5 {[%emt 0:00:25]} Re8 {[%emt 0:03:03]} 27. e4 {[%emt 0:02:31]} (27. Nxd5 $11 {keeps the balance.} Qxe5 28. e4) 27... Qc5+ $17 {[%emt 0:00:28]} 28. Kh1 {[%emt 0:02:16][%cal Re4d5]} d4 {[%emt 0:00:01]} 29. Ne2 {[%emt 0:01:15]} (29. Nd5 $17 {is a better defense.}) 29... Qxe5 $19 {[%emt 0:01:09]} 30. Qxd4 {[%emt 0:01:15]} Qxd4 {[%emt 0:00:24]} 31. Nxd4 {[%emt 0:00:01]} Rc4 {[%emt 0:00:22]} 32. Nb5 {[%emt 0:02:01]} Rcxe4 {[%emt 0:00:01]} 33. Rc1 {[%emt 0:00:53]} Bc4 {[%emt 0:01:49]} ({Less strong is} 33... Bxa2 34. Nd6 $14) 34. Nd6 {[%emt 0:00:37]} Bxf1 {[%emt 0:00:17]} 35. Nxe4 {[%emt 0:00:20][%mdl 4096] Endgame KRB-KRN} Ba6 {[%emt 0:00:43]} 36. Nc3 {[%emt 0:00:35]} Rd8 {[%emt 0:00:24]} 37. Rc2 {[%emt 0:00:28]} (37. Kg1 $17) 37... Rc8 {[%emt 0:00:15]} 38. Kg1 {[%emt 0:00:26] [#]} b5 $1 {[%emt 0:00:51]} 39. a3 {[%emt 0:00:01]} Bb7 {[%emt 0:00:14]} 40. Kf2 {[%emt 0:00:51]} a5 {[%emt 0:00:01][%cal Ba7a5,Ba5b4,Bb4b3][%mdl 32] Threatens to win with ...b4.} 41. Rc1 $2 {[%emt 0:30:49]} (41. Re2 b4 42. axb4 axb4 43. Nd1) 41... b4 {[%emt 0:30:44]} 42. axb4 {[%emt 0:00:18]} axb4 {[%emt 0:00:00]} 43. Ne2 {[%emt 0:00:00]} Rxc1 {[%emt 0:00:00]} 44. Nxc1 {[%emt 0:00:00] KB-KN} Kg7 {[%emt 0:00:00]} 45. g3 {[%emt 0:00:00]} Kf6 {[%emt 0:00:00]} 46. Ke3 {[%emt 0:00:00]} Kf5 {[%emt 0:00:00] [#] Hoping for ...Bc8.} 47. Nd3 {[%emt 0:00:00]} b3 {[%emt 0:00:00]} 48. Nb2 {[%emt 0:00:00]} Ba6 {[%emt 0:00:00]} 49. Nd1 {[%emt 0:00:00]} Bb5 {[%emt 0:00:00]} 50. Nb2 {[%emt 0:00:00]} Ke5 {[%emt 0:00:00]} 51. Nd1 {[%emt 0:00:00]} Kd5 {[%emt 0:00:00]} 52. Nb2 {[%emt 0:00:00]} Kc5 {[%emt 0:00:00] aiming for ...Kd5.} 53. Nd1 {[%emt 0:00:00]} Kb4 {[%emt 0:00:00] Strongly threatening ...Ka3.} 54. Kd2 {[%emt 0:00:00]} Ka3 {[%emt 0:00:00] ( -> ...b2)} 55. Kc3 {[%emt 0:00:00] Prevents b2.} (55. Kc1) 55... Ba6 {[%emt 0:00:00]} 56. Kd2 {[%emt 0:02:05]} b2 {[%emt 0:00:00] Black mates.} 57. Nxb2 {[%emt 0:03:17]} Kxb2 {[%emt 0:00:00]} 58. Ke3 {[%emt 0:00:08]} h5 {[%emt 0:00:00]} 59. Kf4 {[%emt 0:00:34]} Bc8 {[%emt 0:00:05]} 60. Kg5 {[%emt 0:00:40]} Bf5 {[%emt 0:00:05] Weighted Error Value: White=0.75/Black=0.17 (very precise)} 0-1

[Event "Summer Prague Open-A 2022"]
[Site "Prague"]
[Date "2022.08.07"]
[Round "3.4"]
[White "Lutsko, Artem"]
[Black "Svatos, Jan"]
[Result "1/2-1/2"]
[ECO "D37"]
[WhiteElo "2392"]
[BlackElo "2185"]
[Annotator "TA"]
[PlyCount "90"]
[EventDate "2022.08.05"]
[EventType "swiss"]
[EventCountry "CZE"]
[SourceTitle "playchess.com"]
[Source "ChessBase"]
[SourceQuality "1"]
[TimeControl "40/5400+30:1800+30"]

{[%evp 21,90,18,15,20,16,16,8,8,24,12,16,17,27,3,3,3,3,0,29,13,49,7,14,8,33,27,51,0,0,0,81,68,87,33,62,62,61,59,60,57,57,58,56,56,70,72,66,68,88,29,15,15,8,14,12,9,30,0,0,0,0,0,0,0,0,0,0,0,0,-6,0]} 1. d4 {[%emt 0:00:01]} Nf6 {[%emt 0:00:09]} 2. c4 {[%emt 0:00:04]} e6 {[%emt 0:00:38]} 3. Nf3 {[%emt 0:00:04]} d5 {[%emt 0:00:05]} 4. Nc3 {[%emt 0:00:12]} Be7 {[%emt 0:00:09]} 5. g3 {[%emt 0:00:10]} O-O {[%emt 0:00:06]} 6. Bg2 {[%emt 0:00:02]} dxc4 {[%emt 0:00:38]} 7. Ne5 {[%emt 0:00:04]} Nc6 {[%emt 0:00:06]} 8. Bxc6 {[%emt 0:00:32]} bxc6 {[%emt 0:00:05]} 9. Nxc6 {[%emt 0:00:04]} Qe8 {[%emt 0:00:23]} 10. Nxe7+ {[%emt 0:00:05]} Qxe7 {[%emt 0:00:02]} 11. Qa4 {[%emt 0:00:08]} c5 {[%emt 0:02:41]} 12. dxc5 $1 {[%emt 0:00:04] The main line 12.dxc5 scores better than 12.Qxc4. E06: Closed Catalan: Early deviations.} Qxc5 {[%emt 0:01:31]} 13. Be3 {[%emt 0:00:05]} Qc7 {[%emt 0:01:37]} 14. Rd1 {[%emt 0:00:11]} Bb7 {[%emt 0:04:24]} 15. O-O {[%emt 0:00:16]} Nd5 {[%emt 0:25:08]} 16. Bd4 {[%emt 0:04:44]} Rfd8 {[%emt 0:35:34] [#]} 17. Qc2 $146 {[%emt 0:27:38]} ({Predecessor:} 17. Nxd5 Rxd5 18. Bc3 a5 19. Rxd5 exd5 20. Rd1 f6 21. Rd4 Qc6 22. Qxc6 Bxc6 23. f3 {½-½ (59) Sarana,A (2685)-Caruana,F (2781) Chess.com INT 2022}) 17... e5 {[%emt 0:03:41]} (17... f6 {looks sharper.} 18. Rd2 Nb4 19. Qa4 a5) 18. Nxd5 {[%emt 0:00:32]} Rxd5 {[%emt 0:00:11]} 19. Be3 {[%emt 0:00:28]} Qc6 {[%emt 0:07:59][%cal Od5d2] [#] Strongly threatening ...Rd2!} 20. f3 {[%emt 0:00:06]} Rad8 {[%emt 0:00:34]} 21. Rc1 {[%emt 0:11:27]} Rc8 {[%emt 0:05:21]} 22. Rfd1 {[%emt 0:00:25]} Rxd1+ {[%emt 0:00:15]} 23. Rxd1 {[%emt 0:00:23]} e4 {[%emt 0:02:15]} 24. fxe4 {[%emt 0:02:56]} (24. Qxe4 $14 Qxe4 25. fxe4) 24... Qe6 {[%emt 0:03:17]} 25. Rd4 {[%emt 0:02:14]} f5 {[%emt 0:02:53]} (25... h5 $11 {remains equal.}) 26. Qd2 $16 {[%emt 0:03:24]} Re8 {[%emt 0:00:12]} 27. Bf4 {[%emt 0:01:50]} (27. Rd8 $16) 27... Bxe4 {[%emt 0:01:08]} 28. Rd6 $1 {[%emt 0:00:25]} Qf7 {[%emt 0:02:44]} 29. Qd4 {[%emt 0:01:15]} h6 {[%emt 0:00:17]} 30. Rd7 {[%emt 0:08:23]} Re7 {[%emt 0:00:08]} 31. Rxe7 {[%emt 0:00:11]} Qxe7 {[%emt 0:00:01]} 32. Qxc4+ $14 {[%emt 0:00:07][%mdl 4096] Endgame KQB-KQB} Kh7 {[%emt 0:00:04]} 33. Kf2 {[%emt 0:02:46]} Qb7 {[%emt 0:00:53]} 34. b3 {[%emt 0:01:46]} Bb1 {[%emt 0:01:18]} 35. Qa4 {[%emt 0:01:41]} (35. b4 $16) 35... Qh1 $11 {[%emt 0:00:17]} 36. Qxa7 {[%emt 0:03:46] And now Be5 would win.} Qxh2+ {[%emt 0:00:06]} 37. Ke1 {[%emt 0:00:02] Black must now prevent Be5.} Qh1+ {[%emt 0:00:07]} 38. Kd2 {[%emt 0:00:04]} Qe4 {[%emt 0:00:16] Inhibits Be5.} 39. Qc7 {[%emt 0:04:27] [#] Be5 is the strong threat.} Qd5+ {[%emt 0:00:12] The position is equal.} 40. Kc1 {[%emt 0:01:43]} Bxa2 {[%emt 0:00:17]} 41. Be5 {[%emt 0:30:24][%csl Ge5][%cal Rc7g7]} Qg8 {[%emt 0:30:34]} 42. Qc2 {[%emt 0:02:25]} Qxb3 {[%emt 0:00:00] aiming for ...Qe3+.} 43. Qxf5+ {[%emt 0:00:00]} Kg8 {[%emt 0:00:00]} 44. Qc8+ {[%emt 0:00:00]} Kh7 {[%emt 0:00:00] Hoping for ...Qe3+.} 45. Qc7 {[%emt 0:00:00][%csl Ge5][%cal Rc7g7]} Qc4+ {[%emt 0:00:00] Weighted Error Value: White=0.09 (flawless) /Black=0.12 (very precise)} 1/2-1/2

[Event "Summer Prague Open-A 2022"]
[Site "Prague"]
[Date "2022.08.07"]
[Round "3.5"]
[White "Ehrlich, Roy"]
[Black "Kambrath, Yannick"]
[Result "1/2-1/2"]
[ECO "B28"]
[WhiteElo "2183"]
[BlackElo "2401"]
[Annotator "TA"]
[PlyCount "100"]
[EventDate "2022.08.05"]
[EventType "swiss"]
[EventCountry "CZE"]
[SourceTitle "playchess.com"]
[Source "ChessBase"]
[SourceQuality "1"]
[TimeControl "40/5400+30:1800+30"]

{[%evp 9,100,37,39,19,48,21,62,27,70,25,31,13,28,24,27,29,34,37,29,33,38,41,41,25,39,28,43,37,93,84,102,0,22,0,0,0,82,-64,-19,-61,-65,-70,-77,-69,-8,-10,14,14,14,8,12,8,10,6,8,6,5,6,7,54,60,5,6,6,4,8,8,6,6,0,0,0,0,-4618,-4618,-4618,0,0,0,-4606,0,0,5,0,0,0,0,0,0,0,0,0,0]} 1. e4 {[%emt 0:00:03]} c5 {[%emt 0:07:07]} 2. Nf3 {[%emt 0:00:03]} a6 {[%emt 0:00:11]} 3. c3 {[%emt 0:00:05]} Nf6 {[%emt 0:00:14]} 4. Bd3 {[%emt 0:00:20]} e6 {[%emt 0:10:34] [#]} 5. Bc2 $146 {[%emt 0:00:24]} ({Predecessor:} 5. a4 b6 6. Bc2 d5 7. e5 Nfd7 8. d4 Nc6 9. O-O Be7 10. Be3 Bb7 11. Re1 Qc7 12. Na3 cxd4 13. Bxd4 Nxd4 14. Qxd4 {0-1 (62) Kiss,I (1774)-Dekany,L (2026) Hungary 2016}) 5... b5 {[%emt 0:01:17]} 6. d4 {[%emt 0:09:42] B28: Sicilian: 2 Nf3 a6 (O'Kelly Variation).} Bb7 {[%emt 0:02:56]} 7. Qe2 {[%emt 0:04:04]} (7. e5 $5 {[%cal Re5f6]} Nd5 8. O-O $11) 7... Be7 {[%emt 0:03:19]} 8. O-O {[%emt 0:12:00] White is slightly better.} d6 {[%emt 0:20:07]} 9. Nbd2 {[%emt 0:18:49]} cxd4 {[%emt 0:08:44]} 10. cxd4 {[%emt 0:00:52]} Nbd7 {[%emt 0:00:29]} 11. Re1 {[%emt 0:02:13]} O-O {[%emt 0:03:43]} 12. Nf1 {[%emt 0:05:44]} Re8 {[%emt 0:01:12]} 13. Ng3 {[%emt 0:00:11]} Nb6 {[%emt 0:03:11]} 14. b3 {[%emt 0:05:42]} Rc8 {[%emt 0:00:40]} 15. Bb2 {[%emt 0:01:03]} Nbd7 {[%emt 0:05:22][%cal Bb6d7,Bd7f8,Bf8g6][%mdl 32]} 16. Rad1 {[%emt 0:01:14]} Qb6 {[%emt 0:02:37]} 17. Bb1 {[%emt 0:02:39]} Ra8 {[%emt 0:04:36]} 18. h4 {[%emt 0:04:33]} a5 {[%emt 0:01:28]} ({Black should play} 18... Rad8 $14) 19. e5 $1 $16 {[%emt 0:02:20] Threatens to win with Ng5.} Nd5 {[%emt 0:01:23]} 20. Qe4 {[%emt 0:05:05] Against Nf4} (20. Ng5 $1 $16 h6 21. Nxf7 Kxf7 22. Qg4) 20... Nf8 $1 $11 {[%emt 0:01:44][%cal Od5c3]} 21. Nh5 {[%emt 0:03:31]} Ng6 {[%emt 0:03:46][%cal Od5c3] ...Nc3! is the strong threat.} 22. Qg4 $1 {[%emt 0:00:49]} Rac8 {[%emt 0:01:11] [#]} (22... dxe5 $11 23. dxe5 Rac8) 23. Rc1 {[%emt 0:06:48]} (23. Ng3 $1 $16) 23... b4 {[%emt 0:01:28]} 24. Nd2 {[%emt 0:00:47]} Rxc1 {[%emt 0:03:49]} 25. Rxc1 {[%emt 0:00:43]} dxe5 {[%emt 0:03:01]} 26. Nc4 {[%emt 0:00:15]} Qd8 {[%emt 0:04:36]} (26... f5 $15 27. Nxb6 fxg4 28. Nxd5 Bxd5) 27. dxe5 {[%emt 0:00:56]} Nc3 {[%emt 0:01:19] Inhibits Be4.} 28. Bxc3 {[%emt 0:01:16]} bxc3 {[%emt 0:00:01]} 29. Rxc3 {[%emt 0:00:33]} Bd5 {[%emt 0:00:58] This bishop pair is nice.} (29... Bb4 {looks sharper.} 30. Rg3 Ba6 31. Nf4 Bxc4 32. Bxg6 hxg6 33. bxc4 Qd4) 30. Bxg6 {[%emt 0:07:39]} hxg6 {[%emt 0:00:27]} 31. Nf4 {[%emt 0:00:11] Strongly threatening Rd3.} Bxc4 {[%emt 0:01:36]} 32. Rxc4 {[%emt 0:00:33]} Bxh4 {[%emt 0:01:54] [#]} 33. Nxg6 $1 {[%emt 0:01:35]} Bxf2+ {[%emt 0:00:57]} 34. Kxf2 {[%emt 0:00:08]} fxg6 {[%emt 0:00:16][%mdl 4096] Endgame KQR-KQR} 35. Kg1 {[%emt 0:03:26]} ({White should try} 35. Qxg6 $14 Rf8+ 36. Kg3 (36. Kg1 Qd5 $14)) 35... Qd2 {[%emt 0:00:47]} 36. Qxg6 {[%emt 0:01:25]} Qe1+ {[%emt 0:00:01]} 37. Kh2 {[%emt 0:00:01] Dancing on a razor blade.} Qxe5+ {[%emt 0:00:10]} 38. Qg3 {[%emt 0:00:33]} Qf6 {[%emt 0:01:45]} (38... Qh5+ {seems wilder.} 39. Rh4 Qd5 40. Qg6 Qe5+) 39. Rc5 {[%emt 0:01:10]} e5 {[%emt 0:00:28][%cal Be6e5,Be5e4,Be4e3][%mdl 32]} 40. Rxa5 {[%emt 0:00:30]} e4 {[%emt 0:00:16]} 41. Rd5 $2 {[%emt 0:16:09][%mdl 8192] [#]} (41. Qe3 $11) 41... e3 $1 $19 {[%emt 0:07:36]} 42. Rd1 {[%emt 0:01:11]} Qf5 $2 {[%emt 0:16:24]} (42... Re4 $19 {( -> ...e2)} 43. Kg1 e2) 43. Qf3 $11 {[%emt 0:02:11]} Qe5+ {[%emt 0:00:55]} (43... e2 $5 44. Re1 Qe6 $11) 44. Kg1 $2 {[%emt 0:00:47][%mdl 8192]} (44. g3 $11) 44... Rf8 $2 {[%emt 0:05:03]} (44... e2 $19 45. Re1 Re6) 45. Qe2 {[%emt 0:00:54] Inhibits Qe3+. Hoping for Qc4+. The position is equal.} Rf4 {[%emt 0:01:17] Inhibits Qc4+. And now ...Rh4 would win.} 46. Rd3 {[%emt 0:03:04]} Qa1+ {[%emt 0:01:11]} (46... Rh4 $2 47. Rxe3 (47. Qxe3 Qh2+ 48. Kf2 Rf4+ 49. Ke1 Qh1+ 50. Kd2 Qxg2+ 51. Kc3 Qc6+ 52. Kb2 Qf6+ 53. Kb1 Rf1+ 54. Kc2 Rf2+ 55. Rd2 Qc6+ 56. Qc3 Rxd2+ 57. Kxd2 Qg2+ 58. Ke1 Qg1+ 59. Ke2 Qg2+ 60. Kd3 Qxa2 $11) 47... Qd4 48. Qd3 $18) 47. Qd1 {[%emt 0:02:52]} Qe5 {[%emt 0:00:38]} (47... Qxa2 48. Rd8+ Rf8 49. Qd5+ Kh7 50. Qe4+ Kh6 51. Rxf8 Qa1+ 52. Kh2) 48. Qe2 {[%emt 0:01:17]} Qa1+ {[%emt 0:00:33]} (48... Rh4 $2 49. Rxe3 (49. Qxe3 Qh2+ 50. Kf2 Rf4+ 51. Ke1 Qh1+ 52. Kd2 Qxg2+ 53. Kc3 Qc6+ 54. Kb2 Qf6+ 55. Kc2 Rf2+ 56. Rd2 Qf5+ 57. Qd3 Rxd2+ 58. Kxd2 Qa5+ 59. Ke2 Qxa2+ 60. Ke3 Qa7+ 61. Qd4 Qxd4+ 62. Kxd4 g5 $11) 49... Qd4 50. Qf2 $18) 49. Qd1 {[%emt 0:01:32]} Qe5 $1 {[%emt 0:00:22]} (49... Qxa2 50. Rd8+ Rf8 51. Qd5+ Kh7 52. Qe4+ Kh6 53. Rxf8 Qa1+ 54. Kh2) 50. Qe2 {[%emt 0:00:12]} Qa1+ {[%emt 0:01:10] Weighted Error Value: White=0.49/Black=0.28 (precise)} (50... Rh4 $2 51. Rxe3 (51. Qxe3 Qh2+ 52. Kf2 Rf4+ 53. Ke1 Qh1+ 54. Kd2 Qxg2+ 55. Kc3 Qc6+ 56. Kb2 Qf6+ 57. Kc2 Rf2+ 58. Rd2 Qf5+ 59. Qd3 Rxd2+ 60. Kxd2 Qa5+ 61. Ke3 Qxa2 $11) 51... Qd4 52. Qf2 $18) 1/2-1/2